fUST/lending_fUST_20260222
["ID","MTS","AMOUNT","RATE_DAILY","PERIOD"]
[406317228,1771729307810,-300.0,0.00012885,2]
[406317229,1771729307832,-300.0,0.00012885,2]
[406317230,1771729307856,-300.0,0.00012885,2]
[406317231,1771729307880,-300.0,0.00012885,2]
[406317232,1771729307902,-300.0,0.00012885,2]
[406317233,1771729307925,-300.0,0.00012885,2]
[406317234,1771729307947,-300.0,0.00012885,2]
[406317235,1771729307970,-300.0,0.00012885,2]
[406317236,1771729307992,-300.0,0.00012885,2]
[406317237,1771729308015,-300.0,0.00012885,2]
[406317238,1771729308037,-300.0,0.00012885,2]
[406317239,1771729308060,-300.0,0.00012885,2]
[406317240,1771729308088,-300.0,0.00012885,2]
[406317241,1771729308110,-300.0,0.00012885,2]
[406317242,1771729308132,-300.0,0.00012885,2]
[406317243,1771729308156,-600.0,0.00012885,2]
[406317244,1771729308178,-211.51936739,0.00013273,2]
[406317245,1771729308201,-560.06597207,0.00013273,2]
[406317246,1771729308223,-500.0,0.00013273,2]
[406317247,1771729308247,-500.0,0.00013273,2]
[406317248,1771729308267,-262.91852814,0.00013273,2]
[406317249,1771729308288,-500.0,0.00013273,2]
[406317250,1771729308310,-500.0,0.00013273,2]
[406317251,1771729308330,-500.0,0.00013273,2]
[406317252,1771729308428,-500.0,0.00013273,2]
[406317253,1771729308449,-500.0,0.00013273,2]
[406317254,1771729308470,-500.0,0.00013273,2]
[406317255,1771729308491,-151.34901802,0.00013673,2]
[406317256,1771729308514,-500.0,0.00013699,2]
[406317257,1771729308536,-484.02903339,0.00013699,2]
[406317258,1771729308558,-500.0,0.00013699,2]
[406317259,1771729308578,-167.09381288,0.00013699,2]
[406317260,1771729308600,-500.0,0.00013699,2]
[406317261,1771729308621,-500.30367385,0.00013699,2]
[406317262,1771729308642,-545.68044188,0.00013699,2]
[406317263,1771729308663,-1000.0,0.00013821,2]
[406317264,1771729308685,-628.66693426,0.00013821,2]
[406317265,1771729308705,-1000.0,0.00013821,2]
[406317266,1771729308729,-551.7186439,0.00013821,2]
[406317267,1771729308750,-1000.0,0.00013821,2]
[406317268,1771729308770,-1000.0,0.00013821,2]
[406317269,1771729308793,-1000.0,0.00013821,2]
[406317270,1771729308816,-1000.0,0.00013821,2]
[406317271,1771729314713,5000.0,0.00014,2]
[406317272,1771729327269,502.17563225,0.00013699,2]
[406317273,1771729329146,505.66888302,0.00013699,2]
[406317274,1771729330704,500.0,0.00013273,2]
[406317275,1771729330749,1003.13900474,0.00013821,2]
[406317276,1771729336946,5000.0,0.00014,2]
[406317277,1771729359135,5000.0,0.00014,2]
[406317278,1771729381405,5000.0,0.00014,2]
[406317279,1771729386458,500.0,0.00013273,2]
[406317280,1771729386500,1000.0,0.00013821,2]
[406317281,1771729388427,500.0,0.00013699,2]
[406317282,1771729403618,5000.0,0.00014,2]
[406317283,1771729425588,5000.0,0.00014,2]
[406317284,1771729447571,5000.0,0.00014,2]
[406317285,1771729469494,5000.0,0.00014,2]
[406317286,1771729491784,5000.0,0.00014,2]
[406317287,1771729503528,500.0,0.00013699,2]
[406317288,1771729511365,505.12861408,0.00013699,2]
[406317289,1771729512414,500.0,0.00013273,2]
[406317290,1771729513043,1000.0,0.00013821,2]
[406317291,1771729514111,5000.0,0.00014,2]
[406317292,1771729514544,500.0,0.00013273,2]
[406317293,1771729514596,1002.64773001,0.00013821,2]
[406317294,1771729517181,500.0,0.00013273,2]
[406317295,1771729517232,1000.0,0.00013821,2]
[406317296,1771729537209,5000.0,0.00014,2]
[406317300,1771729559651,5000.0,0.00014,2]
[406317301,1771729581822,5000.0,0.00014,2]
[406317302,1771729605148,5000.0,0.00014,2]
[406317303,1771729627756,5000.0,0.00014,2]
[406317304,1771729632544,500.96311839,0.00013273,2]
[406317305,1771729638476,500.0,0.00013699,2]
[406317306,1771729650037,5000.0,0.00014,2]
[406317307,1771729671939,5000.0,0.00014,2]
[406317308,1771729679969,239.75,8.492e-05,2]
[406317309,1771729680335,239.75,8.492e-05,2]
[406317310,1771729680621,239.75,8.492e-05,2]
[406317311,1771729694226,5000.0,0.00014,2]
[406317312,1771729716194,5000.0,0.00014,2]
[406317313,1771729738212,5000.0,0.00014,2]
[406317314,1771729760477,5000.0,0.00014,2]
[406317315,1771729783197,3570.73923631,0.00014,2]
[406317339,1771729832120,-511.86275612,0.00013273,2]
[406317341,1771729832130,-500.0,0.00013699,2]
[406317343,1771729832139,-1429.26076369,0.00014,2]
[406317345,1771729832148,-620.0,0.00014,2]
[406317347,1771729832158,-6414.0223652,0.00014045,2]
[406317349,1771729832167,-150.0,0.00014096,2]
[406317350,1771729832176,-1147.47897576,0.00014247,2]
[406317351,1771729832185,-537.49838845,0.00014247,2]
[406317353,1771729832194,-1330.37407104,0.00014254,2]
[406317355,1771729832204,-1500.0,0.00014368,2]
[406317357,1771729832213,-1617.00736324,0.00014368,2]
[406317359,1771729832222,-348.8604371,0.00014628,2]
[406317361,1771729832232,-300.0,0.00014652,2]
[406317363,1771729832243,-300.0,0.00014652,2]
[406317365,1771729832257,-300.0,0.00014652,2]
[406317368,1771729832266,-300.0,0.00014652,2]
[406317371,1771729832275,-300.0,0.00014652,2]
[406317374,1771729832284,-300.0,0.00014652,2]
[406317377,1771729832293,-300.0,0.00014652,2]
[406317380,1771729832303,-300.0,0.00014652,2]
[406317382,1771729832311,-300.0,0.00014652,2]
[406317384,1771729832320,-300.0,0.00014652,2]
[406317386,1771729832330,-300.0,0.00014652,2]
[406317388,1771729832339,-300.0,0.00014652,2]
[406317390,1771729832348,-300.0,0.00014652,2]
[406317392,1771729832357,-300.0,0.00014652,2]
[406317394,1771729832366,-300.0,0.00014652,2]
[406317396,1771729832375,-600.0,0.00014652,2]
[406317398,1771729832384,-2000.0,0.00014916,2]
[406317400,1771729832396,-881.9355012,0.00015318,2]
[406317402,1771729832406,-33.06317144,0.00015418,2]
[406317404,1771729832418,-339.50925515,0.00015418,2]
[406317406,1771729832429,-127.42757341,0.00015418,2]
[406317408,1771729832438,-500.0,0.00015418,2]
[406317410,1771729832447,-500.0,0.00015418,2]
[406317412,1771729832456,-64.76175955,0.00015418,2]
[406317491,1771729838425,-1540.54146472,0.00015419,2]
[406317643,1771729844339,-504.15036489,0.00015417,2]
[406317644,1771729844348,-500.0,0.00015417,2]
[406317645,1771729844357,-500.0,0.00015417,2]
[406317646,1771729844366,-500.0,0.00015417,2]
[406317647,1771729844375,-500.0,0.00015417,2]
[406317648,1771729844384,-474.79431841,0.00015417,2]
[406317649,1771729844393,-500.0,0.00015417,2]
[406317650,1771729844402,-500.0,0.00015417,2]
[406317651,1771729844412,-500.0,0.00015417,2]
[406317652,1771729844420,-500.0,0.00015417,2]
[406317653,1771729844429,-402.31142806,0.00015417,2]
[406317654,1771729844438,-274.35606861,0.00015417,2]
[406317655,1771729844447,-363.38961249,0.00015417,2]
[406317656,1771729844456,-52.07959411,0.00015417,2]
[406317657,1771729844467,-353.45,0.00015417,2]
[406317658,1771729844477,-98.19584974,0.00015417,2]
[406317659,1771729844486,-500.0,0.00015417,2]
[406317660,1771729844495,-500.0,0.00015417,2]
[406317661,1771729844504,-500.0,0.00015417,2]
[406317662,1771729844513,-152.65415026,0.00015417,2]
[406317663,1771729846267,-297.10513127,0.00015417,2]
[406317664,1771729846276,-500.0,0.00015417,2]
[406317665,1771729846285,-500.0,0.00015417,2]
[406317666,1771729846295,-500.0,0.00015417,2]
[406317667,1771729846304,-636.45853528,0.00015419,2]
[406317668,1771729846312,-1370.513,0.00015419,2]
[406317669,1771729846321,-2500.0,0.00015464,2]
[406317670,1771729846331,-2510.74814224,0.00015522,2]
[406317671,1771729846340,-783.114,0.00015581,2]
[406317672,1771729846350,-202.609,0.00015581,2]
[406317673,1771729846360,-3000.0,0.00016012,2]
[406317674,1771729846370,-231.0,0.00016096,2]
[406317675,1771729846382,-296.06867733,0.00016157,2]
[406317676,1771729846393,-394.75823644,0.00016157,2]
[406317677,1771729846405,-197.37911822,0.00016157,2]
[406317678,1771729846414,-207.03,0.00016381,2]
[406317679,1771729846425,-223.78122911,0.00016381,2]
[406317688,1771730542383,5000.0,0.00012,2]
[406317689,1771730571757,1435.707246,0.00012,2]
[406317699,1771730814521,3564.292754,0.00012,2]
[406317732,1771731032344,-854.37102466,0.0001188,2]
[406317733,1771731032402,-896.33579158,0.0001188,2]
[406317739,1771731038501,-1052.49164465,0.0001188,2]
[406317741,1771731038555,-943.065,0.0001188,2]
[406317742,1771731038569,-1253.73653911,0.0001188,2]
[406317743,1771731038578,-150.0,0.00012059,2]
[406317744,1771731038587,-486.9509781,0.000123,2]
[406317830,1771731043644,-1449.76546913,0.000123,2]
[406317831,1771731043718,-585.75366434,0.000123,2]
[406317840,1771731046386,-13078.52988843,0.000123,2]
[406317841,1771731046395,-217.12467887,0.00012355,2]
[406317842,1771731046404,-300.0,0.00012544,2]
[406317843,1771731046414,-300.0,0.00012545,2]
[406317844,1771731046423,-300.0,0.00012545,2]
[406317845,1771731046432,-300.0,0.00012545,2]
[406317846,1771731046441,-300.0,0.00012545,2]
[406317847,1771731046451,-300.0,0.00012545,2]
[406317848,1771731046460,-300.0,0.00012545,2]
[406317849,1771731046469,-300.0,0.00012545,2]
[406317850,1771731046478,-300.0,0.00012545,2]
[406317851,1771731046487,-300.0,0.00012545,2]
[406317852,1771731046496,-300.0,0.00012545,2]
[406317853,1771731046505,-300.0,0.00012545,2]
[406317854,1771731046514,-300.0,0.00012545,2]
[406317855,1771731046523,-300.0,0.00012545,2]
[406317856,1771731046532,-300.0,0.00012545,2]
[406317857,1771731046541,-300.0,0.00012545,2]
[406317858,1771731046551,-600.0,0.00012795,2]
[406317859,1771731046560,-154.0,0.00013171,2]
[406317860,1771731046570,-500.0,0.00013273,2]
[406317861,1771731046579,-173.97860575,0.00013273,2]
[406317862,1771731046588,-567.38717322,0.00013273,2]
[406317863,1771731046597,-179.35569909,0.00013698,2]
[406317864,1771731046606,-266.92349201,0.00013698,2]
[406317865,1771731046615,-327.75103128,0.00013698,2]
[406317866,1771731046624,-10573.08699654,0.00013699,2]
[406317867,1771731046645,-1886.44342286,0.00013699,2]
[406317868,1771731046654,-233.459332,0.00013699,2]
[406317869,1771731046663,-504.92646284,0.00013699,2]
[406317870,1771731046672,-501.83965359,0.00013699,2]
[406317871,1771731046681,-500.93911074,0.00013699,2]
[406317872,1771731046690,-394.26529793,0.00013699,2]
[406317873,1771731046699,-425.14418968,0.00013699,2]
[406317874,1771731046708,-514.06541103,0.00013699,2]
[406317875,1771731046717,-441.16919547,0.00013699,2]
[406317876,1771731046726,-503.19022225,0.00013699,2]
[406317877,1771731046735,-244.6451596,0.00013699,2]
[406317878,1771731046744,-287.3116462,0.00013699,2]
[406317879,1771731046753,-501.71719372,0.00013699,2]
[406317880,1771731046763,-1000.0,0.00013821,2]
[406317881,1771731046772,-216.9077711,0.00013997,2]
[406317882,1771731046781,-177.0,0.00014059,2]
[406317883,1771731046790,-720.0,0.00014074,2]
[406317884,1771731046799,-2197.87964073,0.00014175,2]
[406317885,1771731046810,-663.07785786,0.00014368,2]
[406317886,1771731046820,-164.60131902,0.000149,2]
[406317887,1771731046829,-598.03216467,0.000149,2]
[406317888,1771731046841,-945.3050748,0.00015,2]
[406317889,1771731046850,-386.37785906,0.00015,2]
[406317890,1771731046858,-352.68530043,0.00015342,2]
[406317891,1771731046867,-204.14106682,0.00015342,2]
[406317892,1771731046878,-1004.617123,0.00015461,2]
[406317893,1771731046890,-1019.08596303,0.00015461,2]
[406317896,1771731483876,167.82,7.992e-05,2]
[406317897,1771731484140,167.82,7.992e-05,2]
[406317898,1771731484468,167.81,7.992e-05,2]
[406317899,1771731584551,327.45,0.000115,2]
[406317918,1771732237633,-5000.0,0.00012497,2]
[406317920,1771732237644,-150.0,0.00012896,2]
[406317921,1771732237654,-500.0,0.00013273,2]
[406317922,1771732237664,-505.66516554,0.00013273,2]
[406317923,1771732237673,-227.33296448,0.00013699,2]
[406317969,1771732242991,-273.04875006,0.00013699,2]
[406317970,1771732243001,-500.0,0.00013699,2]
[406317971,1771732243012,-124.05399614,0.00013699,2]
[406317981,1771732862328,-3273.74856747,0.00012878,2]
[406317982,1771732862340,-1726.25143253,0.00012878,2]
[406317983,1771732862350,-1200.0,0.00013008,2]
[406317984,1771732862359,-500.0,0.00013009,2]
[406317985,1771732862368,-500.0,0.00013009,2]
[406317986,1771732862377,-500.0,0.00013009,2]
[406317987,1771732862386,-210.09656834,0.00013009,2]
[406317988,1771732862394,-181.03491099,0.00013132,2]
[406317989,1771732862403,-151.0,0.00013132,2]
[406317990,1771732862413,-31.61708814,0.00013132,2]
[406317993,1771733283631,156.65,7.992e-05,2]
[406317994,1771733283904,156.65,7.992e-05,2]
[406317995,1771733284210,156.63,7.992e-05,2]
[406318023,1771733331780,8699.17,0.000115,2]
[406318026,1771733368800,10000.0,0.00011,2]
[406318027,1771733388303,10000.0,0.000105,2]
[406318030,1771733408390,200.0,0.00014,30]
[406318031,1771733411777,10000.0,9.5e-05,2]
[406318032,1771733411803,10000.0,9.5e-05,2]
[406318035,1771733424556,10000.0,9e-05,2]
[406318065,1771733431678,-9431.9638641,9e-05,2]
[406318075,1771733431764,-997.32222237,9e-05,2]
[406318077,1771733431775,-1078.08916142,9e-05,2]
[406318079,1771733431786,-276.36,9e-05,2]
[406318082,1771733431804,-10060.47992239,9e-05,2]
[406318088,1771733431859,-10350.19032058,9e-05,2]
[406318170,1771733437957,-500.0,8.999e-05,2]
[406318171,1771733437966,-500.0,8.999e-05,2]
[406318173,1771733437976,-500.0,8.999e-05,2]
[406318174,1771733437985,-500.0,8.999e-05,2]
[406318176,1771733437995,-500.0,8.999e-05,2]
[406318178,1771733438004,-500.0,8.999e-05,2]
[406318179,1771733438014,-500.0,8.999e-05,2]
[406318180,1771733438023,-476.07798338,8.999e-05,2]
[406318181,1771733438032,-500.0,8.999e-05,2]
[406318182,1771733438045,-500.0,8.999e-05,2]
[406318183,1771733438055,-500.0,8.999e-05,2]
[406318184,1771733438065,-310.00439841,8.999e-05,2]
[406318185,1771733438075,-500.0,8.999e-05,2]
[406318186,1771733438085,-500.0,8.999e-05,2]
[406318187,1771733438095,-500.0,8.999e-05,2]
[406318188,1771733438105,-539.4464022,8.999e-05,2]
[406318189,1771733438116,-500.0,8.999e-05,2]
[406318190,1771733438125,-500.0,8.999e-05,2]
[406318191,1771733438135,-500.0,8.999e-05,2]
[406318192,1771733438145,-500.0,8.999e-05,2]
[406318193,1771733438155,-500.0,8.999e-05,2]
[406318194,1771733438164,-500.0,8.999e-05,2]
[406318195,1771733438173,-500.0,8.999e-05,2]
[406318196,1771733438183,-500.0,8.999e-05,2]
[406318197,1771733438193,-500.0,8.999e-05,2]
[406318198,1771733438203,-511.82126321,8.999e-05,2]
[406318199,1771733438212,-500.0,8.999e-05,2]
[406318200,1771733438222,-500.0,8.999e-05,2]
[406318201,1771733438232,-500.0,8.999e-05,2]
[406318202,1771733438242,-500.0,8.999e-05,2]
[406318203,1771733438251,-500.0,8.999e-05,2]
[406318204,1771733438260,-500.0,8.999e-05,2]
[406318205,1771733438269,-500.0,8.999e-05,2]
[406318206,1771733438279,-500.0,8.999e-05,2]
[406318207,1771733438288,-500.0,8.999e-05,2]
[406318208,1771733438298,-3563.8331159,9e-05,2]
[406318209,1771733438313,-6142.59139324,9e-05,2]
[406318210,1771733438323,-300.0,0.00010499,2]
[406318211,1771733438332,-300.0,0.00010499,2]
[406318212,1771733438342,-300.0,0.00010499,2]
[406318213,1771733438351,-1200.0,0.00010499,2]
[406318214,1771733438360,-300.0,0.00010709,2]
[406318215,1771733438370,-300.0,0.00010709,2]
[406318216,1771733438379,-300.0,0.00010709,2]
[406318217,1771733438393,-300.0,0.00010709,2]
[406318218,1771733438402,-300.0,0.00010709,2]
[406318219,1771733438417,-300.0,0.00010709,2]
[406318220,1771733438427,-300.0,0.00010709,2]
[406318221,1771733438437,-300.0,0.00010709,2]
[406318222,1771733438446,-300.0,0.00010709,2]
[406318223,1771733438455,-300.0,0.00010709,2]
[406318224,1771733438464,-300.0,0.00010709,2]
[406318225,1771733438473,-300.0,0.00010709,2]
[406318226,1771733438482,-300.0,0.00010709,2]
[406318227,1771733438492,-300.0,0.00010709,2]
[406318228,1771733438501,-300.0,0.00010709,2]
[406318229,1771733438511,-600.0,0.00010709,2]
[406318230,1771733438520,-277.58252007,0.00011055,2]
[406318231,1771733438531,-1745.57461863,0.00011055,2]
[406318232,1771733438540,-201.40529316,0.00011055,2]
[406318233,1771733438549,-300.0,0.00011499,2]
[406318234,1771733438651,-420.0,0.00011543,2]
[406318235,1771733438661,-480.0,0.00011549,2]
[406318236,1771733438670,-624.9437222,0.00011634,2]
[406318540,1771733443161,-658.83621924,0.00011634,2]
[406318542,1771733443172,-1522.895,0.00011634,2]
[406318545,1771733443185,-4.33272989,0.00011634,2]
[406318547,1771733443195,-378.02318502,0.0001178,2]
[406318831,1771733445806,-341.97681498,0.0001178,2]
[406318832,1771733445815,-420.0,0.00012074,2]
[406318833,1771733445824,-5549.2070546,0.00012159,2]
[406318834,1771733445833,-1026.23,0.00012329,2]
[406318835,1771733445842,-855.2,0.00012329,2]
[406318836,1771733445855,-712.66,0.00012329,2]
[406318837,1771733445863,-296.94,0.00012329,2]
[406318838,1771733445872,-5472.01534281,0.00012485,2]
[406318839,1771733445881,-587.0,0.00012678,2]
[406318840,1771733445892,-500.0,0.00012749,2]
[406318842,1771733445901,-172.98916973,0.00012749,2]
[406318844,1771733445910,-5000.0,0.0001275,2]
[406318846,1771733445919,-150.0,0.00012879,2]
[406318848,1771733445928,-864.0,0.00012958,2]
[406318850,1771733445937,-200.0,0.00013123,2]
[406318851,1771733445946,-201.60669845,0.00013195,2]
[406318854,1771733445956,-230.42,0.000132,2]
[406318856,1771733445965,-150.0,0.00013262,2]
[406318858,1771733445975,-150.0,0.00013262,2]
[406318860,1771733445984,-256.41540854,0.00013262,2]
[406318862,1771733445993,-151.0,0.00013265,2]
[406318864,1771733446002,-151.0,0.00013265,2]
[406318866,1771733446011,-151.0,0.00013265,2]
[406318868,1771733446020,-151.0,0.00013265,2]
[406318870,1771733446029,-151.0,0.00013265,2]
[406318872,1771733446038,-151.0,0.00013265,2]
[406318874,1771733446047,-151.0,0.00013265,2]
[406318875,1771733446056,-151.0,0.00013265,2]
[406318877,1771733446065,-151.0,0.00013265,2]
[406318879,1771733446074,-151.0,0.00013265,2]
[406318881,1771733446083,-151.0,0.00013265,2]
[406318883,1771733446092,-151.0,0.00013265,2]
[406318885,1771733446101,-151.0,0.00013265,2]
[406318887,1771733446110,-151.0,0.00013265,2]
[406318889,1771733446119,-151.0,0.00013265,2]
[406318891,1771733446127,-151.0,0.00013265,2]
[406318893,1771733446136,-151.0,0.00013265,2]
[406318895,1771733446146,-273.28612192,0.00013265,2]
[406318897,1771733446155,-500.0,0.00013273,2]
[406318899,1771733446164,-500.36488442,0.00013273,2]
[406318901,1771733446173,-504.58382265,0.00013273,2]
[406318903,1771733446182,-258.61410007,0.00013273,2]
[406318905,1771733446192,-500.0,0.00013273,2]
[406318907,1771733446200,-500.0,0.00013273,2]
[406318909,1771733446209,-500.0,0.00013273,2]
[406318920,1771733446300,-505.66516554,0.00013273,2]
[406318922,1771733446312,-500.0,0.00013273,2]
[406318924,1771733446321,-500.0,0.00013273,2]
[406318926,1771733446329,-500.0,0.00013273,2]
[406318928,1771733446338,-150.0,0.00013317,2]
[406318929,1771733446347,-150.0,0.00013317,2]
[406318932,1771733446357,-5587.71132838,0.00013335,2]
[406318933,1771733446366,-150.0,0.00013372,2]
[406318935,1771733446376,-150.0,0.00013372,2]
[406318937,1771733446385,-279.91643282,0.00013425,2]
[406318939,1771733446394,-161.14757158,0.00013426,2]
[406318942,1771733446404,-165.55164308,0.00013426,2]
[406318944,1771733446413,-1994.7654059,0.00013682,2]
[406318945,1771733446423,-504.10747769,0.00013699,2]
[406318947,1771733446432,-511.60590493,0.00013699,2]
[406318949,1771733446444,-98.23686086,0.00013699,2]
[406318952,1771733446455,-129.09610362,0.00013699,2]
[406318953,1771733446464,-379.39810124,0.00013699,2]
[406318955,1771733446473,-502.603343,0.00013699,2]
[406318957,1771733446482,-576.201453,0.00013751,2]
[406318959,1771733446491,-1096.52,0.00013784,2]
[406318961,1771733446501,-1000.23760119,0.00013821,2]
[406318963,1771733446510,-594.806006,0.00013884,2]
[406318965,1771733446521,-794.41443861,0.00013884,2]
[406321534,1771733475971,44187.83986958,0.00014,30]
[406321535,1771733475996,72538.65358041,0.00014,30]
[406321536,1771733476018,83273.50655001,0.00014,30]
[406321547,1771734061122,35005.94,0.00014,30]
[406321576,1771734631837,-4209.20608757,8.6e-05,2]
[406321578,1771734631891,-790.79391243,8.6e-05,2]
[406321579,1771734631900,-150.0,8.731e-05,2]
[406321580,1771734631910,-300.0,9.174e-05,2]
[406321581,1771734631922,-276.0,9.174e-05,2]
[406321582,1771734631932,-1200.0,9.174e-05,2]
[406321583,1771734631942,-9348.2334063,9.175e-05,2]
[406321602,1771734638015,-595.67261286,9.174e-05,2]
[406321603,1771734638024,-500.0,9.174e-05,2]
[406321604,1771734638033,-500.0,9.174e-05,2]
[406321605,1771734638042,-500.0,9.174e-05,2]
[406321606,1771734638051,-500.0,9.174e-05,2]
[406321607,1771734638060,-500.0,9.174e-05,2]
[406321608,1771734638068,-500.0,9.174e-05,2]
[406321609,1771734638077,-26471.95684752,9.175e-05,2]
[406321610,1771734638088,-3233.56746409,9.175e-05,2]
[406321713,1771734642891,-2653.88405065,9.175e-05,2]
[406321730,1771734646049,-377.65162451,9.175e-05,2]
[406321731,1771734646059,-300.0,9.178e-05,2]
[406321732,1771734646068,-300.0,9.178e-05,2]
[406321733,1771734646077,-300.0,9.178e-05,2]
[406321734,1771734646086,-300.0,9.178e-05,2]
[406321735,1771734646096,-300.0,9.178e-05,2]
[406321736,1771734646105,-300.0,9.178e-05,2]
[406321737,1771734646114,-300.0,9.178e-05,2]
[406321738,1771734646123,-300.0,9.178e-05,2]
[406321739,1771734646132,-300.0,9.178e-05,2]
[406321740,1771734646141,-300.0,9.178e-05,2]
[406321741,1771734646151,-300.0,9.178e-05,2]
[406321742,1771734646160,-300.0,9.178e-05,2]
[406321743,1771734646170,-300.0,9.178e-05,2]
[406321744,1771734646180,-300.0,9.178e-05,2]
[406321745,1771734646189,-300.0,9.178e-05,2]
[406321746,1771734646201,-521.55837549,9.361e-05,2]
[406321747,1771734646213,-78.44162451,9.361e-05,2]
[406321748,1771734646222,-2025.18029584,0.0001,2]
[406321749,1771734646231,-720.0,0.00010297,2]
[406321750,1771734646243,-177.0,0.00010731,2]
[406321751,1771734646252,-163.28981947,0.00010959,2]
[406321754,1771735737894,320.0,0.00014,30]
[406321780,1771735832031,-852.67821556,7.97e-05,2]
[406321781,1771735832083,-4147.32178444,7.97e-05,2]
[406321782,1771735832093,-5000.0,8.051e-05,2]
[406321783,1771735832102,-289.28459928,8.051e-05,2]
[406321835,1771735846057,-5000.0,7.97e-05,2]
[406321836,1771735846067,-243.71540072,8.051e-05,2]
[406321837,1771735846078,-1200.0,8.131e-05,2]
[406321838,1771735846087,-300.0,8.172e-05,2]
[406321839,1771735846098,-150.0,8.173e-05,2]
[406321840,1771735846107,-480.0,8.944e-05,2]
[406321841,1771735846118,-420.0,8.989e-05,2]
[406321842,1771735846127,-300.0,9.355e-05,2]
[406321843,1771735846136,-224.27619479,9.356e-05,2]
[406321844,1771735846149,-75.72380521,9.356e-05,2]
[406321845,1771735846158,-300.0,9.356e-05,2]
[406321846,1771735846167,-300.0,9.356e-05,2]
[406321847,1771735846175,-300.0,9.356e-05,2]
[406321848,1771735846284,-300.0,9.356e-05,2]
[406321849,1771735846293,-246.94330477,9.356e-05,2]
[406321850,1771736424567,-2045.44755481,7.428e-05,2]
[406321851,1771736424603,-1231.75358548,7.503e-05,2]
[406321852,1771736453626,-2045.44755481,7.428e-05,2]
[406321854,1771736855597,1680.12722241,7.001e-05,2]
[406321855,1771736882608,188.18,6.494e-05,2]
[406321857,1771737011979,5000.0,7.001e-05,2]
[406321868,1771737032216,-521.0,7.135e-05,2]
[406321869,1771737032227,-150.0,7.226e-05,2]
[406321870,1771737032236,-300.0,8.329e-05,2]
[406321871,1771737032246,-95.08026057,8.329e-05,2]
[406321909,1771737038438,-1526.53813588,8.246e-05,2]
[406321911,1771737038449,-317.96272121,8.246e-05,2]
[406321917,1771737038494,-3111.32780367,8.246e-05,2]
[406322068,1771737040781,-44.17133924,8.246e-05,2]
[406322070,1771737040790,-204.91973943,8.329e-05,2]
[406322072,1771737040799,-300.0,8.329e-05,2]
[406322074,1771737040808,-300.0,8.329e-05,2]
[406322076,1771737040817,-190.75373146,8.329e-05,2]
[406322395,1771737043821,-1009.24626854,8.329e-05,2]
[406322397,1771737043830,-4429.75684447,8.33e-05,2]
[406322399,1771737043842,-500.0,8.33e-05,2]
[406322401,1771737043854,-10.30913976,8.33e-05,2]
[406322403,1771737043864,-367.45392028,8.331e-05,2]
[406322405,1771737043873,-159.19161257,8.331e-05,2]
[406322407,1771737043883,-15.99664286,9.162e-05,2]
[406322410,1771737043894,-142.00335714,9.162e-05,2]
[406322411,1771737043903,-142.63732367,9.226e-05,2]
[406322677,1771737046295,-34.36267633,9.226e-05,2]
[406322679,1771737046304,-1820.3662994,9.754e-05,2]
[406323270,1771738232426,-1235.12671266,9.089e-05,2]
[406323337,1771738238549,-3764.87328734,9.089e-05,2]
[406323338,1771738238559,-150.0,9.135e-05,2]
[406323339,1771738238570,-174.09699807,9.181e-05,2]
[406323341,1771738240927,-374.90300193,9.181e-05,2]
[406323342,1771738240936,-763.63814328,9.486e-05,2]
[406323343,1771738243086,-436.36185672,9.486e-05,2]
[406323344,1771738243104,-436.36185672,9.487e-05,2]